[Event "Early-Titled-Tuesday-Blitz-August-29-2023"]
[Site "Chess.com"]
[Date "2023.08.29"]
[Round "2"]
[White "YairParkhov"]
[Black "Mr_November18"]
[Result "1-0"]
[WhiteElo "2680"]
[BlackElo "1897"]
[TimeControl "180+1"]
[EndTime "8:16:10 PDT"]
[Termination "YairParkhov won by resignation"]

1. d4 {[%clk 0:03:00.2]} 1... Nf6 {[%clk 0:02:58.9]} 2. c4 {[%clk 0:02:58.5]}
2... g6 {[%clk 0:02:59.2]} 3. Nf3 {[%clk 0:02:53]} 3... Bg7 {[%clk 0:02:59.2]}
4. g3 {[%clk 0:02:53.2]} 4... O-O {[%clk 0:02:58.7]} 5. Bg2 {[%clk 0:02:53.8]}
5... d6 {[%clk 0:02:59.2]} 6. O-O {[%clk 0:02:54.1]} 6... Nc6 {[%clk 0:02:59.5]}
7. Nc3 {[%clk 0:02:49.9]} 7... a6 {[%clk 0:02:59.6]} 8. d5 {[%clk 0:02:44]} 8...
Na5 {[%clk 0:02:52.7]} 9. b3 {[%clk 0:02:44]} 9... c5 {[%clk 0:02:52.4]} 10.
dxc6 {[%clk 0:02:43.2]} 10... Nxc6 {[%clk 0:02:50.6]} 11. Bg5 {[%clk 0:02:42.9]}
11... h6 {[%clk 0:02:45.1]} 12. Bf4 {[%clk 0:02:41.5]} 12... Qa5 {[%clk
0:02:41]} 13. Rc1 {[%clk 0:02:40.5]} 13... Nh5 {[%clk 0:02:39.9]} 14. Bd2 {[%clk
0:02:40.3]} 14... Qd8 {[%clk 0:02:32.8]} 15. Nd5 {[%clk 0:02:38.5]} 15... Be6
{[%clk 0:02:23.4]} 16. Bc3 {[%clk 0:02:31.9]} 16... Bxc3 {[%clk 0:02:07.6]} 17.
Nxc3 {[%clk 0:02:30.4]} 17... Ng7 {[%clk 0:02:05.6]} 18. Qd2 {[%clk 0:02:21.7]}
18... Kh7 {[%clk 0:02:04.7]} 19. Rfd1 {[%clk 0:02:19.8]} 19... Qa5 {[%clk
0:01:53.1]} 20. e3 {[%clk 0:02:05.6]} 20... Rfd8 {[%clk 0:01:35.1]} 21. Nd4
{[%clk 0:02:05.1]} 21... Bd7 {[%clk 0:01:28.4]} 22. Qb2 {[%clk 0:02:03.8]} 22...
Rac8 {[%clk 0:01:15.9]} 23. Nd5 {[%clk 0:01:58.8]} 23... Nxd4 {[%clk 0:01:04.8]}
24. exd4 {[%clk 0:01:40.8]} 24... Re8 {[%clk 0:00:55.9]} 25. b4 {[%clk
0:01:38.5]} 25... Qd8 {[%clk 0:00:50.7]} 26. c5 {[%clk 0:01:32.7]} 26... dxc5
{[%clk 0:00:28.7]} 27. dxc5 {[%clk 0:01:31.8]} 27... Bc6 {[%clk 0:00:28.1]} 28.
Nf6+ {[%clk 0:01:29]} 28... exf6 {[%clk 0:00:27.3]} 29. Rxd8 {[%clk 0:01:29.9]}
29... Rcxd8 {[%clk 0:00:27]} 30. Bxc6 {[%clk 0:01:30.4]} 30... bxc6 {[%clk
0:00:26.6]} 31. Qxf6 {[%clk 0:01:30.9]} 1-0

[Event "Early-Titled-Tuesday-Blitz-August-29-2023"]
[Site "Chess.com"]
[Date "2023.08.29"]
[Round "2"]
[White "sergoy"]
[Black "Sadykov_Ramil"]
[Result "1-0"]
[WhiteElo "2946"]
[BlackElo "2616"]
[TimeControl "180+1"]
[EndTime "8:16:19 PDT"]
[Termination "sergoy won on time"]

1. d4 {[%clk 0:03:00.9]} 1... d5 {[%clk 0:02:59.9]} 2. c4 {[%clk 0:03:01.4]}
2... c6 {[%clk 0:02:58.7]} 3. Nf3 {[%clk 0:03:01.8]} 3... Nf6 {[%clk 0:02:56.6]}
4. Nc3 {[%clk 0:03:02.4]} 4... e6 {[%clk 0:02:53.8]} 5. e3 {[%clk 0:03:01.1]}
5... Nbd7 {[%clk 0:02:53]} 6. Qc2 {[%clk 0:03:01.3]} 6... Bd6 {[%clk 0:02:44.4]}
7. Bd3 {[%clk 0:03:01.9]} 7... O-O {[%clk 0:02:37.9]} 8. O-O {[%clk 0:03:01.8]}
8... dxc4 {[%clk 0:02:33.1]} 9. Bxc4 {[%clk 0:03:02.7]} 9... b5 {[%clk
0:02:33.6]} 10. Be2 {[%clk 0:03:02.7]} 10... Bb7 {[%clk 0:02:30.3]} 11. e4
{[%clk 0:03:02.6]} 11... e5 {[%clk 0:02:20.8]} 12. dxe5 {[%clk 0:03:03.5]} 12...
Nxe5 {[%clk 0:02:21.3]} 13. Nh4 {[%clk 0:03:04.2]} 13... Ng6 {[%clk 0:01:53.4]}
14. Nf5 {[%clk 0:03:03.6]} 14... Bf4 {[%clk 0:01:47.8]} 15. Bxf4 {[%clk
0:03:00.7]} 15... Nxf4 {[%clk 0:01:48.7]} 16. Rad1 {[%clk 0:03:01.1]} 16... Qb6
{[%clk 0:01:46.8]} 17. e5 {[%clk 0:02:59.2]} 17... N6d5 {[%clk 0:01:36.5]} 18.
Bf3 {[%clk 0:02:56.2]} 18... Rfe8 {[%clk 0:01:28.4]} 19. Rfe1 {[%clk 0:02:51.5]}
19... Rad8 {[%clk 0:00:55.5]} 20. Nxd5 {[%clk 0:02:50.1]} 20... Nxd5 {[%clk
0:00:46.3]} 21. Nd6 {[%clk 0:02:47.2]} 21... Re6 {[%clk 0:00:35.6]} 22. Qf5
{[%clk 0:02:46.5]} 22... Qc7 {[%clk 0:00:26]} 23. Bg4 {[%clk 0:01:39.5]} 23...
Qe7 {[%clk 0:00:16]} 24. Nxf7 {[%clk 0:01:37.6]} 1-0

[Event "Early-Titled-Tuesday-Blitz-August-29-2023"]
[Site "Chess.com"]
[Date "2023.08.29"]
[Round "2"]
[White "expii"]
[Black "AquivaRubinstein"]
[Result "0-1"]
[WhiteElo "2272"]
[BlackElo "2490"]
[TimeControl "180+1"]
[EndTime "8:16:21 PDT"]
[Termination "AquivaRubinstein won by resignation"]

1. e4 {[%clk 0:03:00.3]} 1... Nf6 {[%clk 0:02:56.2]} 2. e5 {[%clk 0:03:00.4]}
2... Nd5 {[%clk 0:02:55.4]} 3. d4 {[%clk 0:03:00.8]} 3... d6 {[%clk 0:02:55.7]}
4. c4 {[%clk 0:03:00.5]} 4... Nb6 {[%clk 0:02:55.9]} 5. exd6 {[%clk 0:03:00.5]}
5... cxd6 {[%clk 0:02:56.3]} 6. Nc3 {[%clk 0:03:00.8]} 6... g6 {[%clk
0:02:56.7]} 7. Nf3 {[%clk 0:03:01.4]} 7... Bg7 {[%clk 0:02:56.9]} 8. Be2 {[%clk
0:03:01.5]} 8... O-O {[%clk 0:02:56]} 9. O-O {[%clk 0:03:01.4]} 9... Bg4 {[%clk
0:02:56]} 10. b3 {[%clk 0:03:00.9]} 10... Nc6 {[%clk 0:02:55.5]} 11. Be3 {[%clk
0:03:00.2]} 11... d5 {[%clk 0:02:51.9]} 12. c5 {[%clk 0:02:58.7]} 12... Nc8
{[%clk 0:02:51]} 13. h3 {[%clk 0:02:56.6]} 13... Bxf3 {[%clk 0:02:49.6]} 14.
Bxf3 {[%clk 0:02:56.1]} 14... e6 {[%clk 0:02:48.8]} 15. a3 {[%clk 0:02:54]}
15... a5 {[%clk 0:02:40.9]} 16. Rb1 {[%clk 0:02:53.3]} 16... N8e7 {[%clk
0:02:40.8]} 17. b4 {[%clk 0:02:52.2]} 17... axb4 {[%clk 0:02:41.2]} 18. axb4
{[%clk 0:02:53.1]} 18... Nf5 {[%clk 0:02:41.7]} 19. Ne2 {[%clk 0:02:50.5]} 19...
Qd7 {[%clk 0:02:22.5]} 20. Qd2 {[%clk 0:02:34.1]} 20... e5 {[%clk 0:02:18]} 21.
dxe5 {[%clk 0:02:30.7]} 21... d4 {[%clk 0:02:18.4]} 22. Rfd1 {[%clk 0:02:22.8]}
22... Qe6 {[%clk 0:02:07.6]} 23. Nxd4 {[%clk 0:02:15.4]} 23... Ncxd4 {[%clk
0:02:03.1]} 24. Bxd4 {[%clk 0:02:16.3]} 24... Rad8 {[%clk 0:01:47.6]} 25. Qc3
{[%clk 0:02:16.3]} 25... Nxd4 {[%clk 0:01:46.5]} 26. Rxd4 {[%clk 0:02:07.7]}
26... Bxe5 {[%clk 0:01:46.8]} 27. Rxd8 {[%clk 0:01:53.1]} 27... Bxc3 {[%clk
0:01:44.3]} 28. Rxf8+ {[%clk 0:01:50.9]} 28... Kxf8 {[%clk 0:01:45.2]} 29. Bxb7
{[%clk 0:01:50.9]} 29... Bxb4 {[%clk 0:01:37.7]} 30. c6 {[%clk 0:01:45.7]} 30...
Bd6 {[%clk 0:01:36.3]} 31. g3 {[%clk 0:01:41.1]} 31... h5 {[%clk 0:01:34.9]} 32.
Rc1 {[%clk 0:01:40.5]} 32... Bc7 {[%clk 0:01:33.2]} 33. Rd1 {[%clk 0:01:40.8]}
33... Kg7 {[%clk 0:01:30.5]} 34. Rd7 {[%clk 0:01:39.6]} 34... Qe5 {[%clk
0:01:30.6]} 35. Kg2 {[%clk 0:01:37]} 35... Bb6 {[%clk 0:01:28.4]} 36. Rd2 {[%clk
0:01:32.9]} 36... g5 {[%clk 0:01:13]} 37. g4 {[%clk 0:01:10.6]} 37... hxg4
{[%clk 0:01:11.1]} 38. hxg4 {[%clk 0:01:11.5]} 38... Qf4 {[%clk 0:01:07.1]} 39.
Rb2 {[%clk 0:01:08.5]} 39... Qxg4+ {[%clk 0:01:04.5]} 40. Kf1 {[%clk 0:01:09.4]}
40... Qc4+ {[%clk 0:01:03.5]} 41. Kg2 {[%clk 0:01:09]} 41... Qd4 {[%clk
0:01:02]} 42. Rc2 {[%clk 0:01:07.1]} 42... Qe4+ {[%clk 0:01:01.3]} 0-1

[Event "Early-Titled-Tuesday-Blitz-August-29-2023"]
[Site "Chess.com"]
[Date "2023.08.29"]
[Round "2"]
[White "kidagent"]
[Black "DeArron_Fox"]
[Result "0-1"]
[WhiteElo "2281"]
[BlackElo "2495"]
[TimeControl "180+1"]
[EndTime "8:16:30 PDT"]
[Termination "DeArron_Fox won by resignation"]

1. e4 {[%clk 0:03:00.9]} 1... c5 {[%clk 0:02:58]} 2. Nf3 {[%clk 0:02:59.9]} 2...
e6 {[%clk 0:02:58.6]} 3. d4 {[%clk 0:02:59.8]} 3... cxd4 {[%clk 0:02:59.5]} 4.
Nxd4 {[%clk 0:03:00.3]} 4... a6 {[%clk 0:03:00.2]} 5. Nc3 {[%clk 0:03:00.6]}
5... b5 {[%clk 0:03:00.4]} 6. a3 {[%clk 0:03:00.2]} 6... Bb7 {[%clk 0:03:00.9]}
7. g3 {[%clk 0:03:00.3]} 7... Nc6 {[%clk 0:03:01.4]} 8. Nde2 {[%clk 0:02:59.7]}
8... Bc5 {[%clk 0:02:40.5]} 9. Bg2 {[%clk 0:02:59.6]} 9... Nf6 {[%clk
0:01:31.3]} 10. O-O {[%clk 0:02:55]} 10... Qc7 {[%clk 0:01:07.4]} 11. Bf4 {[%clk
0:02:51.8]} 11... Ne5 {[%clk 0:00:59.6]} 12. h3 {[%clk 0:02:46.4]} 12... h6
{[%clk 0:00:53.1]} 13. Kh2 {[%clk 0:02:18.2]} 13... g5 {[%clk 0:00:51]} 14. Bxe5
{[%clk 0:02:17.9]} 14... Qxe5 {[%clk 0:00:50.4]} 15. f4 {[%clk 0:02:18]} 15...
gxf4 {[%clk 0:00:49.1]} 16. gxf4 {[%clk 0:02:17.7]} 16... Qc7 {[%clk 0:00:49.6]}
17. Qd3 {[%clk 0:02:04.2]} 17... Rg8 {[%clk 0:00:33]} 18. Bf3 {[%clk 0:02:00.6]}
18... O-O-O {[%clk 0:00:24.3]} 19. b4 {[%clk 0:01:59.8]} 19... d5 {[%clk
0:00:09.3]} 20. e5 {[%clk 0:01:53.7]} 20... d4 {[%clk 0:00:07.1]} 21. exf6
{[%clk 0:01:38.5]} 21... dxc3 {[%clk 0:00:06.3]} 22. Qxc3 {[%clk 0:01:37.7]}
22... Bxf3 {[%clk 0:00:05.5]} 23. Rxf3 {[%clk 0:01:35.3]} 23... Bd6 {[%clk
0:00:05.4]} 24. Qxc7+ {[%clk 0:01:29.7]} 24... Bxc7 {[%clk 0:00:06.3]} 25. Rd3
{[%clk 0:01:27.2]} 25... Rxd3 {[%clk 0:00:05.9]} 26. cxd3 {[%clk 0:01:28.1]}
26... e5 {[%clk 0:00:06.6]} 27. fxe5 {[%clk 0:01:21.4]} 27... Bxe5+ {[%clk
0:00:07.5]} 28. Kh1 {[%clk 0:01:20.9]} 28... Bxa1 {[%clk 0:00:07.5]} 0-1

[Event "Early-Titled-Tuesday-Blitz-August-29-2023"]
[Site "Chess.com"]
[Date "2023.08.29"]
[Round "2"]
[White "biostatistician"]
[Black "FormerProdigy"]
[Result "0-1"]
[WhiteElo "2573"]
[BlackElo "2883"]
[TimeControl "180+1"]
[EndTime "8:16:32 PDT"]
[Termination "FormerProdigy won by resignation"]

1. d4 {[%clk 0:03:00]} 1... Nf6 {[%clk 0:02:59.6]} 2. Nf3 {[%clk 0:02:59.5]}
2... e6 {[%clk 0:02:59.6]} 3. c4 {[%clk 0:02:59.5]} 3... b6 {[%clk 0:02:59.8]}
4. Nc3 {[%clk 0:02:59.3]} 4... Bb4 {[%clk 0:02:58.5]} 5. Qc2 {[%clk 0:02:59.1]}
5... Bb7 {[%clk 0:02:58.2]} 6. a3 {[%clk 0:03:00]} 6... Bxc3+ {[%clk 0:02:57.2]}
7. Qxc3 {[%clk 0:03:00.9]} 7... O-O {[%clk 0:02:55.5]} 8. g3 {[%clk 0:03:00.8]}
8... a5 {[%clk 0:02:37.3]} 9. Bg2 {[%clk 0:03:00.1]} 9... a4 {[%clk 0:02:36.7]}
10. O-O {[%clk 0:02:59.6]} 10... d6 {[%clk 0:02:37.1]} 11. Re1 {[%clk
0:02:51.8]} 11... Nbd7 {[%clk 0:02:35.8]} 12. Bh3 {[%clk 0:02:44.2]} 12... Ne4
{[%clk 0:02:28.7]} 13. Qc2 {[%clk 0:02:43.6]} 13... f5 {[%clk 0:02:28.5]} 14.
Bg2 {[%clk 0:02:38.6]} 14... Ra7 {[%clk 0:02:19.4]} 15. Rd1 {[%clk 0:02:13.1]}
15... Qe7 {[%clk 0:02:01]} 16. Ne1 {[%clk 0:02:11.9]} 16... e5 {[%clk
0:01:58.8]} 17. e3 {[%clk 0:02:06.8]} 17... Qf7 {[%clk 0:01:42.2]} 18. Nd3
{[%clk 0:02:04.2]} 18... Ng5 {[%clk 0:01:38.4]} 19. Nb4 {[%clk 0:01:31.7]} 19...
Nf3+ {[%clk 0:01:28.4]} 20. Kh1 {[%clk 0:01:26.5]} 20... Qh5 {[%clk 0:01:25.5]}
21. h4 {[%clk 0:01:05.5]} 21... Be4 {[%clk 0:01:24.9]} 22. Qe2 {[%clk
0:01:03.7]} 22... g5 {[%clk 0:01:25.2]} 23. Rg1 {[%clk 0:00:43.1]} 23... gxh4
{[%clk 0:01:06.7]} 24. gxh4 {[%clk 0:00:26.9]} 24... Qxh4+ {[%clk 0:01:03.7]}
25. Bh3+ {[%clk 0:00:27.2]} 25... Nxg1+ {[%clk 0:01:04.5]} 26. Kxg1 {[%clk
0:00:25.8]} 26... Qxh3 {[%clk 0:01:04.9]} 0-1

[Event "Early-Titled-Tuesday-Blitz-August-29-2023"]
[Site "Chess.com"]
[Date "2023.08.29"]
[Round "2"]
[White "le_poisson"]
[Black "zimmm36"]
[Result "1-0"]
[WhiteElo "2335"]
[BlackElo "2703"]
[TimeControl "180+1"]
[EndTime "8:16:34 PDT"]
[Termination "le_poisson won by resignation"]

1. e4 {[%clk 0:03:00.9]} 1... c6 {[%clk 0:02:59]} 2. d4 {[%clk 0:03:00.7]} 2...
d5 {[%clk 0:02:59.9]} 3. e5 {[%clk 0:02:59.4]} 3... Bf5 {[%clk 0:02:59.7]} 4. h4
{[%clk 0:02:59.3]} 4... h5 {[%clk 0:02:57.7]} 5. Bd3 {[%clk 0:02:55.7]} 5...
Bxd3 {[%clk 0:02:57.6]} 6. Qxd3 {[%clk 0:02:53.7]} 6... Qa5+ {[%clk 0:02:58.5]}
7. b4 {[%clk 0:02:50.9]} 7... Qxb4+ {[%clk 0:02:56.8]} 8. Nd2 {[%clk 0:02:37.4]}
8... e6 {[%clk 0:02:56.7]} 9. Rb1 {[%clk 0:02:36.5]} 9... Qe7 {[%clk 0:02:56.3]}
10. c4 {[%clk 0:02:35.3]} 10... dxc4 {[%clk 0:02:53.3]} 11. Nxc4 {[%clk
0:02:31.1]} 11... Qd7 {[%clk 0:02:52.8]} 12. Nf3 {[%clk 0:02:02]} 12... Na6
{[%clk 0:02:47.6]} 13. Ba3 {[%clk 0:01:57.3]} 13... c5 {[%clk 0:02:37.9]} 14.
O-O {[%clk 0:01:43.1]} 14... Nh6 {[%clk 0:02:22.7]} 15. Qe4 {[%clk 0:01:38.8]}
15... Qd5 {[%clk 0:02:19.4]} 16. Qe2 {[%clk 0:01:24.9]} 16... Nf5 {[%clk
0:02:13.3]} 17. Rfd1 {[%clk 0:01:07.3]} 17... cxd4 {[%clk 0:02:10]} 18. Bxf8
{[%clk 0:01:01.2]} 18... Kxf8 {[%clk 0:02:10.9]} 19. Nd6 {[%clk 0:00:57.2]}
19... Nc5 {[%clk 0:01:13.1]} 20. Nxf5 {[%clk 0:00:55.9]} 20... exf5 {[%clk
0:01:14]} 21. Rxd4 {[%clk 0:00:55.9]} 21... Qe6 {[%clk 0:01:14]} 22. Ng5 {[%clk
0:00:41.8]} 22... Qe7 {[%clk 0:01:11.9]} 23. Qc4 {[%clk 0:00:28.9]} 23... b6
{[%clk 0:01:11]} 24. Rbd1 {[%clk 0:00:26.6]} 24... Kg8 {[%clk 0:01:02.2]} 25.
Rd8+ {[%clk 0:00:20.5]} 1-0

[Event "Early-Titled-Tuesday-Blitz-August-29-2023"]
[Site "Chess.com"]
[Date "2023.08.29"]
[Round "2"]
[White "Cherneevo_23"]
[Black "PeshkaCh"]
[Result "0-1"]
[WhiteElo "2419"]
[BlackElo "2788"]
[TimeControl "180+1"]
[EndTime "8:16:35 PDT"]
[Termination "PeshkaCh won by resignation"]

1. Nf3 {[%clk 0:03:00.9]} 1... Nf6 {[%clk 0:03:00.1]} 2. c4 {[%clk 0:03:00.5]}
2... e6 {[%clk 0:03:00.1]} 3. Nc3 {[%clk 0:02:59.7]} 3... d5 {[%clk 0:03:00.8]}
4. d4 {[%clk 0:02:59.4]} 4... Be7 {[%clk 0:03:01.4]} 5. Bg5 {[%clk 0:02:58.3]}
5... O-O {[%clk 0:03:02]} 6. e3 {[%clk 0:02:57.9]} 6... b6 {[%clk 0:03:02.4]} 7.
Rc1 {[%clk 0:02:55.6]} 7... Bb7 {[%clk 0:03:02.4]} 8. Bxf6 {[%clk 0:02:55.1]}
8... Bxf6 {[%clk 0:03:02.4]} 9. cxd5 {[%clk 0:02:55.3]} 9... exd5 {[%clk
0:03:02.9]} 10. Bd3 {[%clk 0:02:55.2]} 10... Nd7 {[%clk 0:03:02.8]} 11. O-O
{[%clk 0:02:54.3]} 11... c6 {[%clk 0:03:03.2]} 12. b4 {[%clk 0:02:52.9]} 12...
Re8 {[%clk 0:03:00.2]} 13. Re1 {[%clk 0:02:51.9]} 13... Nf8 {[%clk 0:02:59.8]}
14. Qb3 {[%clk 0:02:50.2]} 14... Qd6 {[%clk 0:02:55.1]} 15. Red1 {[%clk
0:02:24]} 15... Ne6 {[%clk 0:02:53.9]} 16. a4 {[%clk 0:02:15.3]} 16... Rab8
{[%clk 0:02:51.4]} 17. e4 {[%clk 0:02:06]} 17... Nxd4 {[%clk 0:02:43.5]} 18.
Nxd4 {[%clk 0:01:58.3]} 18... Bxd4 {[%clk 0:02:44.4]} 19. exd5 {[%clk
0:01:57.9]} 19... Qf4 {[%clk 0:02:26.3]} 20. Rc2 {[%clk 0:01:31.6]} 20... cxd5
{[%clk 0:02:10.5]} 21. Nxd5 {[%clk 0:01:25.6]} 21... Qe5 {[%clk 0:01:50.5]} 22.
Nc3 {[%clk 0:00:20.8]} 22... Qg5 {[%clk 0:01:34]} 23. Bf1 {[%clk 0:00:19.9]}
23... Be5 {[%clk 0:01:26.6]} 24. Nd5 {[%clk 0:00:06.3]} 24... Qh5 {[%clk
0:01:17.7]} 25. g3 {[%clk 0:00:03.2]} 25... Qxd1 {[%clk 0:01:16.9]} 0-1

[Event "Early-Titled-Tuesday-Blitz-August-29-2023"]
[Site "Chess.com"]
[Date "2023.08.29"]
[Round "2"]
[White "vovachesss"]
[Black "MrAnnihilation"]
[Result "1-0"]
[WhiteElo "2793"]
[BlackElo "2420"]
[TimeControl "180+1"]
[EndTime "8:16:52 PDT"]
[Termination "vovachesss won by resignation"]

1. e4 {[%clk 0:03:00.9]} 1... d6 {[%clk 0:02:53.6]} 2. d4 {[%clk 0:02:57.2]}
2... Nf6 {[%clk 0:02:53.9]} 3. Nc3 {[%clk 0:02:57.7]} 3... e5 {[%clk 0:02:52.4]}
4. Nf3 {[%clk 0:02:56.7]} 4... Nbd7 {[%clk 0:02:52.1]} 5. Rg1 {[%clk 0:02:56.5]}
5... c6 {[%clk 0:02:48.5]} 6. g4 {[%clk 0:02:55.6]} 6... h6 {[%clk 0:02:48.3]}
7. Be3 {[%clk 0:02:54.7]} 7... b5 {[%clk 0:02:47.4]} 8. a3 {[%clk 0:02:54.4]}
8... Bb7 {[%clk 0:02:44.3]} 9. Qd2 {[%clk 0:02:52.1]} 9... a5 {[%clk 0:02:43.2]}
10. g5 {[%clk 0:02:47.9]} 10... hxg5 {[%clk 0:02:42.8]} 11. Nxg5 {[%clk
0:02:48.8]} 11... g6 {[%clk 0:02:15.1]} 12. O-O-O {[%clk 0:02:29.5]} 12... b4
{[%clk 0:02:06.5]} 13. Nb1 {[%clk 0:02:29.6]} 13... d5 {[%clk 0:02:04.1]} 14.
dxe5 {[%clk 0:02:09.9]} 14... Nxe5 {[%clk 0:02:01.6]} 15. Bd4 {[%clk 0:02:10.4]}
15... Qe7 {[%clk 0:01:44.8]} 16. exd5 {[%clk 0:01:58.5]} 16... Nxd5 {[%clk
0:00:48.4]} 17. Bxe5 {[%clk 0:01:51]} 17... Qxe5 {[%clk 0:00:35.8]} 18. Re1
{[%clk 0:01:50.9]} 18... Bg7 {[%clk 0:00:33.6]} 19. f4 {[%clk 0:01:28.7]} 19...
Qxe1+ {[%clk 0:00:26.5]} 20. Qxe1+ {[%clk 0:01:29]} 20... Kf8 {[%clk 0:00:27.4]}
21. Bc4 {[%clk 0:01:21.4]} 21... Rxh2 {[%clk 0:00:25.3]} 22. Qg3 {[%clk
0:01:12.5]} 22... Rh5 {[%clk 0:00:17.6]} 23. Nxf7 {[%clk 0:01:08.9]} 23... Ne7
{[%clk 0:00:12]} 24. Ne5 {[%clk 0:01:01.3]} 24... Bh6 {[%clk 0:00:09.4]} 25.
Nxg6+ {[%clk 0:00:55]} 1-0

[Event "Early-Titled-Tuesday-Blitz-August-29-2023"]
[Site "Chess.com"]
[Date "2023.08.29"]
[Round "2"]
[White "AlexandraSamaganova"]
[Black "joksijoksi"]
[Result "1-0"]
[WhiteElo "2350"]
[BlackElo "2506"]
[TimeControl "180+1"]
[EndTime "8:16:52 PDT"]
[Termination "AlexandraSamaganova won by resignation"]

1. c4 {[%clk 0:03:00.9]} 1... c6 {[%clk 0:02:57.9]} 2. e4 {[%clk 0:02:58]} 2...
d5 {[%clk 0:02:56]} 3. exd5 {[%clk 0:02:57]} 3... cxd5 {[%clk 0:02:56.9]} 4. d4
{[%clk 0:02:56.7]} 4... Nf6 {[%clk 0:02:54.6]} 5. Nc3 {[%clk 0:02:56.6]} 5... e6
{[%clk 0:02:50.4]} 6. Nf3 {[%clk 0:02:54.8]} 6... Be7 {[%clk 0:02:39]} 7. Bg5
{[%clk 0:02:43.3]} 7... O-O {[%clk 0:02:14.8]} 8. Bd3 {[%clk 0:02:34.8]} 8...
dxc4 {[%clk 0:02:13.7]} 9. Bxc4 {[%clk 0:02:34.4]} 9... Nbd7 {[%clk 0:02:13.4]}
10. O-O {[%clk 0:02:33.1]} 10... Nb6 {[%clk 0:02:11.2]} 11. Bb3 {[%clk
0:02:03.1]} 11... h6 {[%clk 0:02:04.1]} 12. Bh4 {[%clk 0:01:58.3]} 12... Nfd5
{[%clk 0:01:55.2]} 13. Bxe7 {[%clk 0:01:51.1]} 13... Nxe7 {[%clk 0:01:54.3]} 14.
Qd3 {[%clk 0:01:40.2]} 14... Nbd5 {[%clk 0:01:38.1]} 15. Rfe1 {[%clk 0:01:31.4]}
15... b6 {[%clk 0:01:28]} 16. Bc2 {[%clk 0:01:20.7]} 16... Ng6 {[%clk
0:01:12.1]} 17. Qd2 {[%clk 0:01:17.8]} 17... Nh4 {[%clk 0:00:50.9]} 18. Nxh4
{[%clk 0:01:06.8]} 18... Qxh4 {[%clk 0:00:51.8]} 19. Re4 {[%clk 0:00:55.6]}
19... Qd8 {[%clk 0:00:38]} 20. Rae1 {[%clk 0:00:46.4]} 20... Bb7 {[%clk
0:00:37.8]} 21. Rg4 {[%clk 0:00:45.1]} 21... Nf6 {[%clk 0:00:36.2]} 22. Rg3
{[%clk 0:00:41.2]} 22... Rc8 {[%clk 0:00:36.2]} 23. Qxh6 {[%clk 0:00:37.8]} 1-0

[Event "Early-Titled-Tuesday-Blitz-August-29-2023"]
[Site "Chess.com"]
[Date "2023.08.29"]
[Round "2"]
[White "LionTheLeon_06"]
[Black "YEIKO2017"]
[Result "0-1"]
[WhiteElo "2771"]
[BlackElo "2458"]
[TimeControl "180+1"]
[EndTime "8:16:54 PDT"]
[Termination "YEIKO2017 won on time"]

1. e4 {[%clk 0:03:00.9]} 1... c5 {[%clk 0:02:58.5]} 2. Nf3 {[%clk 0:03:00.8]}
2... Nf6 {[%clk 0:02:58.6]} 3. e5 {[%clk 0:02:54.5]} 3... Nd5 {[%clk 0:02:58.6]}
4. Nc3 {[%clk 0:02:54.2]} 4... Nxc3 {[%clk 0:02:57.7]} 5. dxc3 {[%clk
0:02:54.9]} 5... Nc6 {[%clk 0:02:58.1]} 6. Bf4 {[%clk 0:02:51.7]} 6... Qb6
{[%clk 0:02:58.1]} 7. b3 {[%clk 0:02:39.8]} 7... Qc7 {[%clk 0:02:55.1]} 8. Qd2
{[%clk 0:02:37.9]} 8... e6 {[%clk 0:02:55.4]} 9. h4 {[%clk 0:02:33.7]} 9... h6
{[%clk 0:02:54.7]} 10. O-O-O {[%clk 0:02:29.5]} 10... a6 {[%clk 0:02:54.5]} 11.
h5 {[%clk 0:02:13.8]} 11... b5 {[%clk 0:02:46.8]} 12. Bd3 {[%clk 0:02:12.6]}
12... c4 {[%clk 0:02:45.3]} 13. Be4 {[%clk 0:02:08.9]} 13... Ba3+ {[%clk
0:02:45.7]} 14. Kb1 {[%clk 0:02:09.3]} 14... Bb7 {[%clk 0:02:46.1]} 15. Qe3
{[%clk 0:02:05.8]} 15... Ne7 {[%clk 0:02:35.6]} 16. g4 {[%clk 0:01:50.9]} 16...
O-O-O {[%clk 0:02:33.8]} 17. Bg3 {[%clk 0:00:50.8]} 17... Bxe4 {[%clk
0:02:20.5]} 18. Qxe4 {[%clk 0:00:51.7]} 18... Nd5 {[%clk 0:02:20.9]} 19. Rxd5
{[%clk 0:00:47.7]} 19... exd5 {[%clk 0:02:21.8]} 20. Qxd5 {[%clk 0:00:47]} 20...
Qc6 {[%clk 0:02:16.9]} 21. Rd1 {[%clk 0:00:44]} 21... Rhe8 {[%clk 0:02:00.8]}
22. b4 {[%clk 0:00:20.5]} 22... Re6 {[%clk 0:01:28.4]} 23. Ka1 {[%clk
0:00:05.5]} 23... f6 {[%clk 0:01:20.9]} 24. Qxc6+ {[%clk 0:00:04]} 24... dxc6
{[%clk 0:01:19.8]} 25. Rxd8+ {[%clk 0:00:03.8]} 25... Kxd8 {[%clk 0:01:20.6]}
26. Nd4 {[%clk 0:00:04.3]} 26... Re8 {[%clk 0:01:16.3]} 27. e6 {[%clk
0:00:01.9]} 27... c5 {[%clk 0:01:12.5]} 0-1